Workbook

Sheet Burden
A1: RUS Electric Loan Application and Related Reporting Burdens
A2: Rural Utilities Service, USDA
A3: OMB # 0572-0032
A4: 2024-07-01
A5: Section of Rule | B5: Title | C5: Form No. (if any) | D5: No. of Respondents | E5: Reports Filed | F5: Total Responses (D) x (E) | G5: Estimated No. of Manhours per response | H5: Estimated Total Manhours (F) x (G) | I5: Wage Class | J5: Total Cost (H) x (I)
A6: (A) | B6: (B) | C6: (C) | D6: (D) | E6: (E) | F6: (F) | G6: (G) | H6: (H) | I6: (I) | J6: (J)
B9: Sam Registration | C9: Sam.gov | D9: 101.00 | E9: 1 | F9: =D9*E9 -> 101 | G9: 2.00 | H9: =F9*G9 -> 202 | I9: 70.19 | J9: =H9*I9 -> $14,178
A10: 1710.501(a)(1) | B10: Loan Application Letter | C10: written | D10: 101.00 | E10: 1 | F10: =D10*E10 -> 101 | G10: 1.00 | H10: =F10*G10 -> 101 | I10: 70.19 | J10: =H10*I10 -> $7,089
A11: 1710.501(a)(3) | B11: Cost Estimates and Loan Budget for Electric Borrowers | C11: Form 740c | D11: 101 | E11: 1 | F11: 101 | G11: 2.50 | H11: 253 | I11: 70.19 | J11: $17,723
A12: 1710.407 | B12: Energy Efficiency Business Plan | C12: written | D12: 1 | E12: 1 | F12: 1 | G12: 2.00 | H12: 2 | I12: 70.19 | J12: $140
A13: 1710.408 | B13: Energy Efficiency Quality Assurance Plan | C13: written | D13: 1 | E13: 1 | F13: 1 | G13: 2.00 | H13: 2 | I13: 70.19 | J13: $140
A14: 1710.411 | B14: Analytical Support Documentation | C14: written | D14: 1 | E14: 1 | F14: 1 | G14: 10.00 | H14: 10 | I14: 70.19 | J14: $702
B15: Financial and Operating Report
A16: 1710.501(a)(4) | B16: a. Distribution Borrowers
B17: Loan Application | C17: written | D17: 82 | E17: 1 | F17: =D17*E17 -> 82 | G17: 2.00 | H17: =F17*G17 -> 164 | I17: 70.19 | J17: =H17*I17 -> $11,511
A18: 1718.104 Article V, Sec 5-19 | B18: Annual Submission - Electronic completion - Web | C18: online | D18: 520 | E18: 1 | F18: 520 | G18: 15.00 | H18: 7,800 | I18: 70.19 | J18: $547,482
A19: 1710.501(a)(4) | B19: b. Power Supply Borrowers (G&T)
B20: Loan Application | C20: written | D20: 19 | E20: 1 | F20: =D20*E20 -> 19 | G20: 2.00 | H20: =F20*G20 -> 38 | I20: 70.19 | J20: =H20*I20 -> $2,667
A21: 1718.104 Article V, Sec 5-19 | B21: Annual Submission - Electronic completion - Web | C21: online | D21: 88 | E21: 1 | F21: 88 | G21: 21.00 | H21: 1,848 | I21: 70.19 | J21: $129,711
A22: 1710.501(a)(2) | B22: Special Resolution | C22: written | D22: 20 | E22: 1 | F22: 20 | G22: 1.50 | H22: 30 | I22: 70.19 | J22: $2,106
A23: 1710.501(b)(7) | B23: Statements from Counsel | C23: written | D23: 10 | E23: 1 | F23: 10 | G23: 0.50 | H23: 5 | I23: 70.19 | J23: $351
A24: 1710.501(b)(1) and (2) | B24: Articles of Incorporation and Bylaws | C24: written | D24: 101 | E24: 1 | F24: 101 | G24: 0.50 | H24: 51 | I24: 70.19 | J24: =H24*I24 -> $3,545
A25: 1710.501(a)(7) | B25: Rate Disparity and Consumer Income Data | C25: written | D25: 1 | E25: 1 | F25: 1 | G25: 0.50 | H25: 1 | I25: 70.19 | J25: $35
A26: 1710.501(a)(6) | B26: Long Range Financial Forecast and Board Resolution (Can use the form 325 or similar format) | C26: Form 325 or written | D26: 101 | E26: 1 | F26: 101 | G26: 17.50 | H26: 1,768 | I26: 70.19 | J26: $124,061
A27: 1710.501(a)(5) and 1710, subpart E | B27: Load Forecast and Board Resolution | C27: written | D27: 82 | E27: 1 | F27: 82 | G27: 21.50 | H27: 1,763 | I27: 70.19 | J27: $123,745
A28: 1710.501(b)(10) and 1710, subpart F | B28: Construction Workplan (CWP), Related Engineering Studies | C28: written | D28: 101 | E28: 1 | F28: 101 | G28: 229.50 | H28: 23,180 | I28: 70.19 | J28: $1,626,969
A29: 1710.255 | B29: Energy Efficiency Workplan (EEWP), Related Engineering Studies | C29: written | D29: 1 | E29: 1 | F29: 1 | G29: 3.50 | H29: 4 | I29: 70.19 | J29: $246
B30: Alternative Source of Power Statement | C30: Written | D30: 1 | E30: 1 | F30: 1 | G30: 0.50 | H30: =G30*F30 -> 0.50 | I30: 70.19 | J30: =I30*H30 -> $35
A31: 1710.501(b)(4) | B31: Audited Financials | C31: written | D31: 10 | E31: 1 | F31: 10 | G31: 0.50 | H31: 5 | I31: 70.19 | J31: $351
A32: 1710.501(b)(5) | B32: List of Secured, Outstanding Debt with Lender names | C32: written | D32: 10 | E32: 1 | F32: 10 | G32: 0.50 | H32: 5 | I32: 70.19 | J32: $351
A33: 1710.501(b)(6) | B33: Evidence of collateral | C33: written | D33: 10 | E33: 1 | F33: 10 | G33: 0.75 | H33: 8 | I33: 70.19 | J33: $526
A34: 1710.501(a)(9) | B34: Uniform Relocation Act | C34: written | D34: 101 | E34: 1 | F34: 101 | G34: 0.50 | H34: 51 | I34: 70.19 | J34: $3,545
A35: 1710.501(a)(10) | B35: Certification Regarding Lobbying | C35: written | D35: 101 | E35: 1 | F35: 101 | G35: 0.50 | H35: 51 | I35: 70.19 | J35: $3,545
A36: 1710.501(a)(11) | B36: Federal Debt Delinquency Requirements | C36: written | D36: 101 | E36: 1 | F36: 101 | G36: 0.50 | H36: 51 | I36: 70.19 | J36: $3,545
A37: 1710.501(a)(8) | B37: Equal Employment Opportunity Employer Report (A copy of the form is provided) | C37: written | D37: 101 | E37: 1 | F37: 101 | G37: 0.25 | H37: 25 | I37: 70.19 | J37: $1,772
B38: Sam Registration | C38: Sam.gov | D38: 101 | E38: 1 | F38: 101 | G38: 1.00 | H38: 101 | I38: 70.19 | J38: $7,089
B39: Totals | D39: =D18+D21 -> 608 | E39: 1 | F39: =SUM(F9:F38) -> 1,968 | H39: =SUM(H9:H38) -> 37,515 | J39: =SUM(J9:J38) -> $2,633,160
C42: Total Estimated Annual Responses | F42: =D39 -> 608
D43: Total Estimated Annual Burden Hours | H43: =H39 -> 37,515
G44: Total Annual Burden Cost | J44: =J39 -> $2,633,160
C45: Total Estimated Burden Hours per Response | G45: =H39/F39 -> 19.062

Sheet Weighted Wage
A1: Table 2: Estimated Wages for Employee Time
A3: Wage Category | B3: Code | C3: Mean Wage* | D3: 29.7% Benefits** | E3: Total Hourly Wage | F3: Percent Time spent on Burden | G3: Weighted Hourly Salary | I3: * | J3: http://www.bls.gov/oes/current/oes_stru.htm
A4: General and Operations Manager | B4: 11-1021 | C4: 62.18 | D4: =C4*A10 -> 18.47 | E4: =C4+D4 -> 80.65 | F4: 80 | G4: =E4*0.8 -> 64.52
A5: Secretaries and Administrative Assistants | B5: 43-6014 | C5: 21.87 | D5: =C5*A10 -> 6.50 | E5: =C5+D5 -> 28.37 | F5: 20 | G5: =E5*0.2 -> 5.67 | I5: ** | J5: https://www.bls.gov/news.release/pdf/ecec.pdf
F7: =SUM(F4:F6) -> 100 | G7: =SUM(G4:G6) -> 70.19
J9: Occupational Employment and Wage Statistics, Occupational Employment and Wages, May 2023
A10: 0.297 | C10: Benefit | J10: EMPLOYER COSTS FOR EMPLOYEE COMPENSATION – MARCH 2024

Sheet Federal
A3: Table 4: Wage Rates for Reviews
A4: Reviews | B4: Wage Rate | C4: Benefits | D4: Hourly Rate
A5: Application Review (GS 13/Step 5) | B5: $64.06 | C5: =B5*0.3625 -> $23.22 | D5: =B5*1.3625 -> $87.28 | G5: SALARY TABLE 2024-DCB (opm.gov)
A6: Annual Financial and Statistical Report (GS 13/Step 5) | B6: $64.06 | C6: =B6*0.3625 -> $23.22 | D6: =B6*1.3625 -> $87.28
B10: Number of Apps/Reports | C10: Hours to complete | D10: Total Cost to Review
A11: Application Review (GS 13/Step 5) | B11: 101 | C11: 164 | D11: =(87.28*164)*101 -> $1,445,706
A12: Annual Financial and Statistical Report (GS 13/Step 5) | B12: 608 | C12: 4 | D12: =(87.28*4)*608 -> $212,265
D13: =D11+D12 -> $1,657,971

Sheet Not in Burden
A3: Section of Rule | B3: Title | C3: Form No. (if any) | D3: No. of Respondents | E3: Reports Filed | F3: Total Responses (D) x (E) | G3: Estimated No. of Manhours per response | H3: Estimated Total Manhours (F) x (G) | I3: Wage Class | J3: Total Cost (H) x (I)
A4: (A) | B4: (B) | C4: (C) | D4: (D) | E4: (E) | F4: (F) | G4: (G) | H4: (H) | I4: (I) | J4: (J)
A5: 1710.501(a)(10) | B5: Disclosure of Lobbying Activities | C5: SF-LLL (4040-0013) | D5: 7 | E5: 1 | F5: 7 | G5: 0.16 | H5: =F5*G5 -> 1.12 | J5: =H5*I5 -> $0
A7: 1710.501(a)(12) | B7: Assurance Agreement | C7: RD 400-4 | D7: 7 | E7: 1 | F7: 7 | G7: 0.50 | H7: =F7*G7 -> 3.50 | J7: =H7*I7 -> $0
